[Event "Late-Titled-Tuesday-Blitz-March-19-2024"]
[Site "Chess.com"]
[Date "2024.03.19"]
[Round "8"]
[White "Thjop"]
[Black "subham777"]
[Result "0-1"]
[WhiteElo "2628"]
[BlackElo "2540"]
[TimeControl "180+1"]
[EndTime "15:27:31 PDT"]
[Termination "subham777 won by resignation"]

1. d4 {[%clk 0:03:00.9]} 1... d5 {[%clk 0:02:59.6]} 2. Nf3 {[%clk 0:03:00.7]}
2... Nf6 {[%clk 0:02:59.6]} 3. g3 {[%clk 0:03:00.6]} 3... e6 {[%clk 0:02:58.2]}
4. Bg2 {[%clk 0:03:00.9]} 4... Be7 {[%clk 0:02:59.1]} 5. O-O {[%clk 0:03:01.3]}
5... O-O {[%clk 0:03:00]} 6. c4 {[%clk 0:03:01.7]} 6... dxc4 {[%clk 0:03:00.9]}
7. Qc2 {[%clk 0:02:59.6]} 7... a6 {[%clk 0:02:52.9]} 8. Rd1 {[%clk 0:02:56.6]}
8... Bd7 {[%clk 0:02:44.2]} 9. Ne5 {[%clk 0:02:52.9]} 9... Bc6 {[%clk
0:02:29.7]} 10. Nxc6 {[%clk 0:02:52.8]} 10... Nxc6 {[%clk 0:02:30.6]} 11. Bxc6
{[%clk 0:02:52.7]} 11... bxc6 {[%clk 0:02:30.6]} 12. Qxc4 {[%clk 0:02:53]} 12...
Qd5 {[%clk 0:02:31.1]} 13. Qc2 {[%clk 0:02:46]} 13... Qh5 {[%clk 0:01:43.7]} 14.
Kg2 {[%clk 0:02:21.1]} 14... c5 {[%clk 0:01:34.8]} 15. dxc5 {[%clk 0:02:04.3]}
15... Bxc5 {[%clk 0:01:35.7]} 16. h3 {[%clk 0:01:51.4]} 16... Rad8 {[%clk
0:01:32.7]} 17. Nc3 {[%clk 0:01:47.1]} 17... Bd4 {[%clk 0:01:30]} 18. Bd2 {[%clk
0:01:28.1]} 18... Rfe8 {[%clk 0:01:05.3]} 19. e3 {[%clk 0:01:24.4]} 19... Bb6
{[%clk 0:01:01.5]} 20. Be1 {[%clk 0:01:21.4]} 20... Qc5 {[%clk 0:00:52.3]} 21.
Rxd8 {[%clk 0:01:18.8]} 21... Rxd8 {[%clk 0:00:50.6]} 22. Rd1 {[%clk 0:01:19.2]}
22... Rxd1 {[%clk 0:00:49.4]} 23. Qxd1 {[%clk 0:01:20.1]} 23... Qc6+ {[%clk
0:00:49.4]} 24. Qf3 {[%clk 0:01:16.4]} 24... Nd5 {[%clk 0:00:47.3]} 25. Nxd5
{[%clk 0:01:02.7]} 25... exd5 {[%clk 0:00:46]} 26. Bc3 {[%clk 0:00:58.9]} 26...
Qd6 {[%clk 0:00:39.6]} 27. Qd1 {[%clk 0:00:54.8]} 27... h6 {[%clk 0:00:29.8]}
28. Qg4 {[%clk 0:00:53.4]} 28... d4 {[%clk 0:00:20.7]} 29. Bxd4 {[%clk
0:00:52.7]} 29... Qd5+ {[%clk 0:00:19.6]} 30. Kh2 {[%clk 0:00:51.7]} 30... Bxd4
{[%clk 0:00:19.9]} 31. Qxd4 {[%clk 0:00:52.6]} 31... Qxa2 {[%clk 0:00:20]} 32.
Kg2 {[%clk 0:00:36.3]} 32... a5 {[%clk 0:00:18.9]} 33. Qd8+ {[%clk 0:00:33.9]}
33... Kh7 {[%clk 0:00:18.7]} 34. Qxc7 {[%clk 0:00:34.4]} 34... a4 {[%clk
0:00:17.3]} 35. Qc3 {[%clk 0:00:32.2]} 35... Qd5+ {[%clk 0:00:17.1]} 36. Kh2
{[%clk 0:00:29.6]} 36... Qf3 {[%clk 0:00:16]} 37. Qc2+ {[%clk 0:00:25.8]} 37...
Kg8 {[%clk 0:00:14.4]} 38. Kg1 {[%clk 0:00:23.5]} 38... Qa8 {[%clk 0:00:13.2]}
39. e4 {[%clk 0:00:19.8]} 39... g6 {[%clk 0:00:10.3]} 40. Qd3 {[%clk 0:00:19.1]}
40... h5 {[%clk 0:00:10.2]} 41. h4 {[%clk 0:00:18.9]} 41... Qc8 {[%clk
0:00:09.4]} 42. Qc3 {[%clk 0:00:16.2]} 42... Qxc3 {[%clk 0:00:08.8]} 0-1

[Event "Late-Titled-Tuesday-Blitz-March-19-2024"]
[Site "Chess.com"]
[Date "2024.03.19"]
[Round "8"]
[White "Vaathi_Coming"]
[Black "TregubovP"]
[Result "1-0"]
[WhiteElo "2891"]
[BlackElo "2687"]
[TimeControl "180+1"]
[EndTime "15:27:33 PDT"]
[Termination "Vaathi_Coming won by resignation"]

1. g3 {[%clk 0:03:00.9]} 1... d5 {[%clk 0:02:57.8]} 2. Bg2 {[%clk 0:03:00.3]}
2... Nf6 {[%clk 0:02:58.2]} 3. Nf3 {[%clk 0:03:00.2]} 3... Bf5 {[%clk
0:02:55.6]} 4. O-O {[%clk 0:03:01.1]} 4... e6 {[%clk 0:02:54.5]} 5. c4 {[%clk
0:03:00.4]} 5... Nc6 {[%clk 0:02:54.2]} 6. cxd5 {[%clk 0:02:57.9]} 6... exd5
{[%clk 0:02:53]} 7. d4 {[%clk 0:02:54.5]} 7... Bd6 {[%clk 0:02:38.3]} 8. Nc3
{[%clk 0:02:53.1]} 8... O-O {[%clk 0:02:36.6]} 9. Bg5 {[%clk 0:02:51.1]} 9...
Be6 {[%clk 0:02:25.5]} 10. Rc1 {[%clk 0:01:41.6]} 10... h6 {[%clk 0:02:19.9]}
11. Bxf6 {[%clk 0:01:41.5]} 11... Qxf6 {[%clk 0:02:20]} 12. Nb5 {[%clk
0:01:42.4]} 12... Rfd8 {[%clk 0:02:08.2]} 13. Qb3 {[%clk 0:01:28.7]} 13... Na5
{[%clk 0:01:53.6]} 14. Qc3 {[%clk 0:01:28.1]} 14... b6 {[%clk 0:01:33.3]} 15.
Ne5 {[%clk 0:01:16.7]} 15... a6 {[%clk 0:00:46.8]} 16. Nxd6 {[%clk 0:01:00.6]}
16... cxd6 {[%clk 0:00:46.9]} 17. Nd3 {[%clk 0:01:00.7]} 17... Rac8 {[%clk
0:00:37.5]} 18. Qb4 {[%clk 0:00:59.5]} 18... Nc4 {[%clk 0:00:26.4]} 19. b3
{[%clk 0:00:46.8]} 19... a5 {[%clk 0:00:26.5]} 20. Qe1 {[%clk 0:00:23]} 20...
Na3 {[%clk 0:00:22.5]} 21. e3 {[%clk 0:00:17.6]} 21... Bf5 {[%clk 0:00:22.3]}
22. Nf4 {[%clk 0:00:16.2]} 22... Be4 {[%clk 0:00:16.9]} 23. Nxd5 {[%clk
0:00:15.1]} 23... Bxd5 {[%clk 0:00:16.5]} 24. Bxd5 {[%clk 0:00:16]} 24... Qf5
{[%clk 0:00:15.9]} 25. Bg2 {[%clk 0:00:10.1]} 25... Nc2 {[%clk 0:00:16]} 26. Qd2
{[%clk 0:00:09.5]} 26... Nb4 {[%clk 0:00:16.1]} 27. a3 {[%clk 0:00:09.8]} 27...
Na6 {[%clk 0:00:11.4]} 28. Rxc8 {[%clk 0:00:09.6]} 28... Qxc8 {[%clk 0:00:11.1]}
29. Rc1 {[%clk 0:00:09.5]} 29... Qd7 {[%clk 0:00:10.9]} 30. h4 {[%clk
0:00:07.1]} 30... Nc7 {[%clk 0:00:10.3]} 31. Qc2 {[%clk 0:00:05.8]} 31... Nb5
{[%clk 0:00:10.5]} 32. Bc6 {[%clk 0:00:05.2]} 32... Nxa3 {[%clk 0:00:09.6]} 33.
Qb2 {[%clk 0:00:04.4]} 33... Qg4 {[%clk 0:00:08]} 34. Qxa3 {[%clk 0:00:04.7]}
34... Rc8 {[%clk 0:00:08.6]} 35. Bg2 {[%clk 0:00:04.6]} 35... Qe2 {[%clk
0:00:08.1]} 36. Rxc8+ {[%clk 0:00:04.4]} 1-0

[Event "Late-Titled-Tuesday-Blitz-March-19-2024"]
[Site "Chess.com"]
[Date "2024.03.19"]
[Round "8"]
[White "Bryanl106"]
[Black "joksijoksi"]
[Result "0-1"]
[WhiteElo "2664"]
[BlackElo "2586"]
[TimeControl "180+1"]
[EndTime "15:27:33 PDT"]
[Termination "joksijoksi won by checkmate"]

1. e4 {[%clk 0:03:00.9]} 1... c5 {[%clk 0:02:58.9]} 2. Nf3 {[%clk 0:03:00.4]}
2... e6 {[%clk 0:02:53.3]} 3. d4 {[%clk 0:03:00.4]} 3... cxd4 {[%clk 0:02:51.5]}
4. Nxd4 {[%clk 0:03:01.3]} 4... a6 {[%clk 0:02:51.6]} 5. Bd3 {[%clk 0:02:54.8]}
5... Bc5 {[%clk 0:02:50.2]} 6. Nb3 {[%clk 0:02:54.5]} 6... Be7 {[%clk
0:02:50.9]} 7. O-O {[%clk 0:02:54.4]} 7... d6 {[%clk 0:02:44.8]} 8. f4 {[%clk
0:02:53.2]} 8... Nc6 {[%clk 0:02:43.5]} 9. Nc3 {[%clk 0:02:52.6]} 9... Nf6
{[%clk 0:02:43.8]} 10. Kh1 {[%clk 0:02:51]} 10... O-O {[%clk 0:02:43.1]} 11. Be3
{[%clk 0:02:49.8]} 11... b5 {[%clk 0:02:27.6]} 12. Qf3 {[%clk 0:02:46.2]} 12...
Bb7 {[%clk 0:02:27]} 13. a4 {[%clk 0:02:39.5]} 13... b4 {[%clk 0:02:25.9]} 14.
Ne2 {[%clk 0:02:38.5]} 14... e5 {[%clk 0:02:24.7]} 15. f5 {[%clk 0:02:25.2]}
15... d5 {[%clk 0:02:23.5]} 16. Ng3 {[%clk 0:02:25]} 16... Re8 {[%clk
0:02:03.1]} 17. Rad1 {[%clk 0:02:21.6]} 17... dxe4 {[%clk 0:01:58.8]} 18. Nxe4
{[%clk 0:02:20.3]} 18... Qc7 {[%clk 0:01:55.9]} 19. Nxf6+ {[%clk 0:02:18]} 19...
Bxf6 {[%clk 0:01:56.8]} 20. Be4 {[%clk 0:02:18.3]} 20... Nd4 {[%clk 0:01:46.5]}
21. Bxd4 {[%clk 0:02:05]} 21... Bxe4 {[%clk 0:01:46.5]} 22. Qxe4 {[%clk
0:02:05.6]} 22... exd4 {[%clk 0:01:47.1]} 23. Qd3 {[%clk 0:02:06.3]} 23... Rad8
{[%clk 0:01:39.9]} 24. Rfe1 {[%clk 0:02:00.9]} 24... Qf4 {[%clk 0:01:34.5]} 25.
Kg1 {[%clk 0:01:48.8]} 25... h6 {[%clk 0:01:20.3]} 26. g3 {[%clk 0:01:43.8]}
26... Qg4 {[%clk 0:01:02.6]} 27. Qxa6 {[%clk 0:01:18.1]} 27... Rxe1+ {[%clk
0:00:55.7]} 28. Rxe1 {[%clk 0:01:17.4]} 28... d3 {[%clk 0:00:51]} 29. cxd3
{[%clk 0:01:11]} 29... Bxb2 {[%clk 0:00:49.1]} 30. Qc4 {[%clk 0:01:05]} 30...
Qxf5 {[%clk 0:00:36.8]} 31. Qxb4 {[%clk 0:01:01.8]} 31... Qxd3 {[%clk
0:00:35.8]} 32. Rf1 {[%clk 0:00:49.7]} 32... Bf6 {[%clk 0:00:30.2]} 33. a5
{[%clk 0:00:40.6]} 33... Bg5 {[%clk 0:00:29.5]} 34. Kg2 {[%clk 0:00:34.2]} 34...
Qd5+ {[%clk 0:00:27.7]} 35. Kh3 {[%clk 0:00:28.4]} 35... Qe6+ {[%clk 0:00:23.6]}
36. Kg2 {[%clk 0:00:24.1]} 36... Rc8 {[%clk 0:00:24.2]} 37. Rf2 {[%clk
0:00:07.4]} 37... Be3 {[%clk 0:00:22.1]} 38. Re2 {[%clk 0:00:05.8]} 38... Qd5+
{[%clk 0:00:22.6]} 39. Kh3 {[%clk 0:00:06]} 39... Bg1 {[%clk 0:00:20.2]} 40. Qg4
{[%clk 0:00:04.8]} 40... Rd8 {[%clk 0:00:19.1]} 41. Rd2 {[%clk 0:00:04.3]} 41...
Qxd2 {[%clk 0:00:15.5]} 42. Nxd2 {[%clk 0:00:04.4]} 42... Rxd2 {[%clk
0:00:16.4]} 43. a6 {[%clk 0:00:04.7]} 43... Rxh2# {[%clk 0:00:15.6]} 0-1

[Event "Late-Titled-Tuesday-Blitz-March-19-2024"]
[Site "Chess.com"]
[Date "2024.03.19"]
[Round "8"]
[White "Rodalquilar"]
[Black "RantomOpening"]
[Result "0-1"]
[WhiteElo "2747"]
[BlackElo "2606"]
[TimeControl "180+1"]
[EndTime "15:27:38 PDT"]
[Termination "RantomOpening won on time"]

1. d4 {[%clk 0:03:00.9]} 1... d5 {[%clk 0:02:57.7]} 2. Nf3 {[%clk 0:03:01.2]}
2... e6 {[%clk 0:02:57.4]} 3. Bf4 {[%clk 0:03:01.5]} 3... Nf6 {[%clk 0:02:57.4]}
4. e3 {[%clk 0:03:01.9]} 4... Bd6 {[%clk 0:02:57.7]} 5. Nbd2 {[%clk 0:03:02.5]}
5... O-O {[%clk 0:02:58.2]} 6. c3 {[%clk 0:03:02.5]} 6... c5 {[%clk 0:02:58.8]}
7. Bd3 {[%clk 0:03:02.5]} 7... Qc7 {[%clk 0:02:59.4]} 8. Bxd6 {[%clk 0:03:02.2]}
8... Qxd6 {[%clk 0:02:58.2]} 9. Ne5 {[%clk 0:03:03.1]} 9... Nbd7 {[%clk
0:02:57.8]} 10. f4 {[%clk 0:03:03.2]} 10... b5 {[%clk 0:02:58]} 11. g4 {[%clk
0:02:58.2]} 11... c4 {[%clk 0:02:56.9]} 12. Bc2 {[%clk 0:02:57.9]} 12... b4
{[%clk 0:02:57]} 13. g5 {[%clk 0:02:57.8]} 13... Ne8 {[%clk 0:02:56.1]} 14. Qh5
{[%clk 0:02:43.9]} 14... f5 {[%clk 0:02:38.4]} 15. gxf6 {[%clk 0:02:43]} 15...
Nexf6 {[%clk 0:02:38.2]} 16. Qh4 {[%clk 0:02:42.3]} 16... bxc3 {[%clk
0:02:35.9]} 17. bxc3 {[%clk 0:02:42.3]} 17... Qa3 {[%clk 0:02:36.3]} 18. Ke2
{[%clk 0:02:26.7]} 18... Qxc3 {[%clk 0:02:35.1]} 19. Rac1 {[%clk 0:02:27.1]}
19... Qa3 {[%clk 0:02:22.9]} 20. Rhg1 {[%clk 0:02:26.8]} 20... c3 {[%clk
0:02:21.3]} 21. Rxg7+ {[%clk 0:01:39.7]} 21... Kxg7 {[%clk 0:01:41.3]} 22. Rg1+
{[%clk 0:01:39.7]} 22... Kh8 {[%clk 0:01:41.3]} 23. Qh6 {[%clk 0:01:39.7]} 23...
Ba6+ {[%clk 0:01:39.4]} 24. Kf3 {[%clk 0:01:38.6]} 24... Nxe5+ {[%clk
0:01:26.9]} 25. dxe5 {[%clk 0:01:33.7]} 25... Qe7 {[%clk 0:01:21.4]} 26. Rg6
{[%clk 0:01:15.4]} 26... Ng8 {[%clk 0:00:53.3]} 27. Rxe6 {[%clk 0:00:50.7]}
27... Nxh6 {[%clk 0:00:52.3]} 28. Rxe7 {[%clk 0:00:51.1]} 28... Nf5 {[%clk
0:00:49.8]} 29. Bxf5 {[%clk 0:00:40.6]} 29... Rxf5 {[%clk 0:00:50.7]} 30. Nb3
{[%clk 0:00:41.3]} 30... Bc4 {[%clk 0:00:47.1]} 31. Nd4 {[%clk 0:00:39.3]} 31...
Rh5 {[%clk 0:00:40.1]} 32. f5 {[%clk 0:00:33.9]} 32... Rh4 {[%clk 0:00:38.8]}
33. f6 {[%clk 0:00:14.5]} 33... Rxd4 {[%clk 0:00:38.3]} 34. f7 {[%clk
0:00:15.1]} 34... Kg7 {[%clk 0:00:37.7]} 35. e6 {[%clk 0:00:14.9]} 35... Rf8
{[%clk 0:00:19]} 36. Rc7 {[%clk 0:00:08.3]} 36... Rd1 {[%clk 0:00:18.7]} 37. Kg2
{[%clk 0:00:04.5]} 37... Rf1 {[%clk 0:00:18.5]} 38. e7 {[%clk 0:00:03.8]} 38...
R1xf7 {[%clk 0:00:18.5]} 39. exf8=Q+ {[%clk 0:00:03.5]} 39... Kxf8 {[%clk
0:00:19.4]} 40. Rc8+ {[%clk 0:00:03.7]} 40... Kg7 {[%clk 0:00:19.1]} 41. e4
{[%clk 0:00:03.7]} 41... c2 {[%clk 0:00:18.9]} 0-1

[Event "Late-Titled-Tuesday-Blitz-March-19-2024"]
[Site "Chess.com"]
[Date "2024.03.19"]
[Round "8"]
[White "Mikasinski"]
[Black "prochn"]
[Result "1-0"]
[WhiteElo "2649"]
[BlackElo "2491"]
[TimeControl "180+1"]
[EndTime "15:27:41 PDT"]
[Termination "Mikasinski won on time"]

1. e4 {[%clk 0:03:00.9]} 1... c6 {[%clk 0:03:00.1]} 2. d4 {[%clk 0:03:01]} 2...
d5 {[%clk 0:03:00.2]} 3. e5 {[%clk 0:03:01.7]} 3... Bf5 {[%clk 0:02:59.3]} 4. h4
{[%clk 0:03:01.8]} 4... h5 {[%clk 0:02:59.1]} 5. Bg5 {[%clk 0:03:02.4]} 5... Qb6
{[%clk 0:02:59]} 6. Bd3 {[%clk 0:03:02.8]} 6... Bxd3 {[%clk 0:02:56.8]} 7. Qxd3
{[%clk 0:03:03.7]} 7... Qa6 {[%clk 0:02:51.8]} 8. Qh3 {[%clk 0:03:00.2]} 8... e6
{[%clk 0:02:50.6]} 9. Ne2 {[%clk 0:03:00.3]} 9... Ne7 {[%clk 0:02:44.5]} 10. Nd2
{[%clk 0:03:00.1]} 10... Nd7 {[%clk 0:02:42.1]} 11. c3 {[%clk 0:02:18.3]} 11...
c5 {[%clk 0:02:38.1]} 12. Nb3 {[%clk 0:01:46]} 12... Nc6 {[%clk 0:02:25.8]} 13.
Qf3 {[%clk 0:01:06.1]} 13... cxd4 {[%clk 0:02:04]} 14. cxd4 {[%clk 0:01:04.2]}
14... Bb4+ {[%clk 0:02:03.8]} 15. Bd2 {[%clk 0:01:04.1]} 15... Rc8 {[%clk
0:01:31.6]} 16. O-O {[%clk 0:01:01]} 16... Bxd2 {[%clk 0:01:17.2]} 17. Nxd2
{[%clk 0:01:01.6]} 17... Qb6 {[%clk 0:01:17.4]} 18. Nb3 {[%clk 0:01:00.8]} 18...
a5 {[%clk 0:01:15.5]} 19. Rfc1 {[%clk 0:00:58.7]} 19... a4 {[%clk 0:01:12.2]}
20. Nc5 {[%clk 0:00:55]} 20... Nxc5 {[%clk 0:01:12]} 21. Rxc5 {[%clk 0:00:54.5]}
21... Qxb2 {[%clk 0:01:07]} 22. Rac1 {[%clk 0:00:48.1]} 22... Ke7 {[%clk
0:00:32.4]} 23. Qe3 {[%clk 0:00:40.8]} 23... Qb6 {[%clk 0:00:21.9]} 24. Qa3
{[%clk 0:00:29.2]} 24... Kd7 {[%clk 0:00:14.1]} 25. Qxa4 {[%clk 0:00:26.3]}
25... Ra8 {[%clk 0:00:12.5]} 26. Qc2 {[%clk 0:00:22.9]} 26... Ra3 {[%clk
0:00:09.2]} 27. Rb1 {[%clk 0:00:19.9]} 27... Qa6 {[%clk 0:00:08.8]} 28. Rcb5
{[%clk 0:00:20.2]} 28... Rb8 {[%clk 0:00:07]} 29. R1b2 {[%clk 0:00:14.8]} 29...
Kc7 {[%clk 0:00:06.8]} 30. Qc5 {[%clk 0:00:14.1]} 30... Rxa2 {[%clk 0:00:03.9]}
31. Qd6+ {[%clk 0:00:13.6]} 31... Kc8 {[%clk 0:00:04.4]} 32. Rxa2 {[%clk
0:00:11.6]} 32... Qxb5 {[%clk 0:00:03.5]} 33. Qf8+ {[%clk 0:00:09.7]} 33... Nd8
{[%clk 0:00:03.8]} 34. Rc2+ {[%clk 0:00:09.7]} 34... Kd7 {[%clk 0:00:02.1]} 35.
Qd6+ {[%clk 0:00:09.8]} 35... Ke8 {[%clk 0:00:02.2]} 36. Qxb8 {[%clk 0:00:10.1]}
36... Qd3 {[%clk 0:00:01.6]} 37. Qc8 {[%clk 0:00:05.2]} 1-0

[Event "Late-Titled-Tuesday-Blitz-March-19-2024"]
[Site "Chess.com"]
[Date "2024.03.19"]
[Round "8"]
[White "DucksParadise"]
[Black "tylityli"]
[Result "1-0"]
[WhiteElo "2500"]
[BlackElo "2328"]
[TimeControl "180+1"]
[EndTime "15:27:42 PDT"]
[Termination "DucksParadise won on time"]

1. d4 {[%clk 0:03:00.9]} 1... Nf6 {[%clk 0:02:53.8]} 2. c4 {[%clk 0:03:00.4]}
2... e6 {[%clk 0:02:53.4]} 3. Nc3 {[%clk 0:03:00.3]} 3... Bb4 {[%clk 0:02:53.6]}
4. e3 {[%clk 0:02:58.6]} 4... Bxc3+ {[%clk 0:02:53.8]} 5. bxc3 {[%clk
0:02:57.6]} 5... d6 {[%clk 0:02:54.7]} 6. Bd3 {[%clk 0:02:56.8]} 6... e5 {[%clk
0:02:54.6]} 7. e4 {[%clk 0:02:56]} 7... Qe7 {[%clk 0:02:52.3]} 8. f3 {[%clk
0:02:43]} 8... Nc6 {[%clk 0:02:34.7]} 9. Ne2 {[%clk 0:02:42.3]} 9... h6 {[%clk
0:02:29.3]} 10. O-O {[%clk 0:02:37]} 10... g5 {[%clk 0:02:23.6]} 11. Rb1 {[%clk
0:02:28.7]} 11... b6 {[%clk 0:02:22.5]} 12. Be3 {[%clk 0:01:57.1]} 12... Na5
{[%clk 0:02:19.3]} 13. c5 {[%clk 0:01:48.6]} 13... O-O {[%clk 0:02:10]} 14. cxd6
{[%clk 0:01:45]} 14... cxd6 {[%clk 0:02:06.2]} 15. h4 {[%clk 0:01:39.8]} 15...
Nh7 {[%clk 0:01:58.7]} 16. hxg5 {[%clk 0:01:37.6]} 16... hxg5 {[%clk 0:01:54.3]}
17. g4 {[%clk 0:01:28.2]} 17... Be6 {[%clk 0:01:26.7]} 18. Kg2 {[%clk
0:01:24.8]} 18... Nc4 {[%clk 0:01:17.2]} 19. Bc1 {[%clk 0:01:16.3]} 19... Rac8
{[%clk 0:01:03.6]} 20. Ng3 {[%clk 0:01:04.8]} 20... f6 {[%clk 0:00:56]} 21. Rh1
{[%clk 0:00:57.7]} 21... Rf7 {[%clk 0:00:53.7]} 22. Rh6 {[%clk 0:00:50.2]} 22...
Qf8 {[%clk 0:00:48.4]} 23. Qh1 {[%clk 0:00:45.8]} 23... Qg7 {[%clk 0:00:37.5]}
24. Qh3 {[%clk 0:00:23.8]} 24... Nf8 {[%clk 0:00:35.4]} 25. d5 {[%clk
0:00:18.5]} 25... Bd7 {[%clk 0:00:34.1]} 26. Bxc4 {[%clk 0:00:17.7]} 26... Rxc4
{[%clk 0:00:30.4]} 27. Bd2 {[%clk 0:00:16.7]} 27... Ng6 {[%clk 0:00:26]} 28. Rh1
{[%clk 0:00:09.9]} 28... Nh4+ {[%clk 0:00:20.7]} 29. Rxh4 {[%clk 0:00:09.5]}
29... gxh4 {[%clk 0:00:20.7]} 30. Qxh4 {[%clk 0:00:10.4]} 30... Qh7 {[%clk
0:00:18.8]} 31. Nh5 {[%clk 0:00:10]} 31... Kf8 {[%clk 0:00:15.6]} 32. Kf2 {[%clk
0:00:07.7]} 32... Ke8 {[%clk 0:00:14.9]} 33. Nxf6+ {[%clk 0:00:07.2]} 33... Rxf6
{[%clk 0:00:10.6]} 34. Qxh7 {[%clk 0:00:06.6]} 34... Rf7 {[%clk 0:00:11.1]} 35.
Qh8+ {[%clk 0:00:06.8]} 35... Ke7 {[%clk 0:00:11.4]} 36. Bg5+ {[%clk 0:00:05.5]}
1-0

[Event "Late-Titled-Tuesday-Blitz-March-19-2024"]
[Site "Chess.com"]
[Date "2024.03.19"]
[Round "8"]
[White "schondeln"]
[Black "Jamal-Jamal-Jamal"]
[Result "1-0"]
[WhiteElo "2386"]
[BlackElo "2257"]
[TimeControl "180+1"]
[EndTime "15:27:43 PDT"]
[Termination "schondeln won on time"]

1. e4 {[%clk 0:03:00.9]} 1... c5 {[%clk 0:02:56.7]} 2. Nf3 {[%clk 0:03:00.3]}
2... Nc6 {[%clk 0:02:55.7]} 3. Bb5 {[%clk 0:02:59.3]} 3... e5 {[%clk 0:02:54.7]}
4. O-O {[%clk 0:02:55.9]} 4... Qc7 {[%clk 0:02:51]} 5. c3 {[%clk 0:02:55.1]}
5... a6 {[%clk 0:02:47.4]} 6. Ba4 {[%clk 0:02:48.9]} 6... b5 {[%clk 0:02:44.7]}
7. Bc2 {[%clk 0:02:48.8]} 7... Nf6 {[%clk 0:02:42.2]} 8. a4 {[%clk 0:02:36.9]}
8... Bb7 {[%clk 0:02:35.6]} 9. axb5 {[%clk 0:02:37.2]} 9... axb5 {[%clk
0:02:36.5]} 10. Rxa8+ {[%clk 0:02:36.5]} 10... Bxa8 {[%clk 0:02:36.3]} 11. Na3
{[%clk 0:02:36.7]} 11... Qb8 {[%clk 0:02:29.5]} 12. Qe2 {[%clk 0:02:34.1]} 12...
b4 {[%clk 0:02:25.9]} 13. Nc4 {[%clk 0:02:32.9]} 13... b3 {[%clk 0:02:21.2]} 14.
Bb1 {[%clk 0:02:17.7]} 14... Be7 {[%clk 0:02:16.2]} 15. Ne3 {[%clk 0:02:04.7]}
15... O-O {[%clk 0:02:08.9]} 16. Bd3 {[%clk 0:01:53.3]} 16... Na7 {[%clk
0:01:43.6]} 17. Nf5 {[%clk 0:01:50.4]} 17... Re8 {[%clk 0:01:38.4]} 18. Ng3
{[%clk 0:01:25.7]} 18... Bf8 {[%clk 0:01:32.9]} 19. Bc4 {[%clk 0:01:24]} 19...
d5 {[%clk 0:01:26.4]} 20. exd5 {[%clk 0:01:23.7]} 20... Bxd5 {[%clk 0:01:27.3]}
21. Bxd5 {[%clk 0:01:11.4]} 21... Nxd5 {[%clk 0:01:28.2]} 22. d3 {[%clk
0:01:11.8]} 22... Nc6 {[%clk 0:01:00.3]} 23. Be3 {[%clk 0:00:55.4]} 23... Nf4
{[%clk 0:00:53.8]} 24. Qd1 {[%clk 0:00:40.7]} 24... Nd5 {[%clk 0:00:32.6]} 25.
Re1 {[%clk 0:00:39.3]} 25... f6 {[%clk 0:00:32]} 26. Ne4 {[%clk 0:00:33.9]}
26... Nxe3 {[%clk 0:00:20.1]} 27. fxe3 {[%clk 0:00:34.8]} 27... Rd8 {[%clk
0:00:19.7]} 28. Qe2 {[%clk 0:00:32.7]} 28... c4 {[%clk 0:00:18.9]} 29. d4 {[%clk
0:00:31.8]} 29... exd4 {[%clk 0:00:17]} 30. exd4 {[%clk 0:00:32.7]} 30... Qb5
{[%clk 0:00:16.3]} 31. Ned2 {[%clk 0:00:21.1]} 31... Na5 {[%clk 0:00:13.4]} 32.
Qe6+ {[%clk 0:00:19.7]} 32... Kh8 {[%clk 0:00:13.3]} 33. h3 {[%clk 0:00:19.9]}
33... Qa4 {[%clk 0:00:04]} 34. Qb6 {[%clk 0:00:10.1]} 34... Nc6 {[%clk
0:00:02.4]} 35. Re6 {[%clk 0:00:08.3]} 35... Rb8 {[%clk 0:00:02.3]} 36. Qxc6
{[%clk 0:00:06.9]} 36... Qa1+ {[%clk 0:00:01.8]} 37. Kh2 {[%clk 0:00:06.4]}
37... Qxb2 {[%clk 0:00:02.3]} 38. Re8 {[%clk 0:00:06.7]} 38... Rxe8 {[%clk
0:00:01]} 39. Qxe8 {[%clk 0:00:07.6]} 39... Kg8 {[%clk 0:00:01.3]} 40. Qe6+
{[%clk 0:00:07.5]} 40... Kh8 {[%clk 0:00:01.8]} 41. Qxc4 {[%clk 0:00:07.5]}
41... Qc2 {[%clk 0:00:01.1]} 42. Qxb3 {[%clk 0:00:07.5]} 1-0